bitfinex/quotes_ETHUSD_20250827
["timestamp","ask_amount","ask_price","bid_price","bid_amount"]
[1756331713731,0.02,4534.8,4534.7,2.99721754]
[1756331713933,0.3152,4534.8,4534.7,2.99721754]
[1756331714228,0.3152,4534.8,4534.7,3.93796877]
[1756331714433,0.02,4534.8,4534.7,3.93796877]
[1756331714628,0.02,4534.8,4534.7,8.13796877]
[1756331715890,0.02,4534.8,4534.7,8.45126877]
[1756331716056,0.02,4534.8,4534.7,11.45126877]
[1756331716981,0.02,4534.8,4534.7,11.92576877]
[1756331717879,0.02,4534.8,4534.7,12.0923356]
[1756331718082,0.02,4534.8,4534.7,12.0803356]
[1756331718628,0.02,4535.8,4535.7,2.99673135]
[1756331718909,0.02,4535.8,4535.7,8.88073135]
[1756331719070,0.02,4535.8,4535.7,9.98928527]
[1756331719265,0.02,4535.8,4535.7,10.15914527]
[1756331719707,0.02,4535.8,4535.7,9.85254527]
[1756331720499,0.02,4535.8,4535.7,8.87373135]
[1756331721201,0.02,4535.8,4535.7,9.17333135]
[1756331721906,0.02,4535.8,4535.7,9.75823135]
[1756331722199,0.02,4535.8,4535.7,12.28373135]
[1756331722898,0.02,4535.8,4535.7,12.27273135]
[1756331723085,0.02,4535.8,4535.7,13.7679361]
[1756331723489,0.021,4536.8,4536.7,2.99624537]
[1756331723686,0.021,4536.8,4536.7,8.85724537]
[1756331723870,0.021,4536.8,4536.7,8.96764537]
[1756331723871,0.3135,4536.8,4536.7,8.96764537]
[1756331724601,0.3135,4536.8,4536.7,4.80264537]
[1756331725001,0.3135,4536.8,4536.7,6.7584]
[1756331725202,0.3135,4536.8,4536.7,2.5984]
[1756331725504,2.97429679,4536.8,4536.7,5.855]
[1756331726477,2.97429679,4536.8,4536.7,6.647]
[1756331728397,2.97429679,4536.8,4536.7,2.488]
[1756331728581,2.97429679,4536.8,4536.7,6.637]
[1756331729790,2.97429679,4536.8,4536.7,0.792]
[1756331729999,2.97429679,4536.8,4536.7,4.936]
[1756331731071,2.97429679,4536.8,4536.7,0.792]
[1756331731293,2.97429679,4536.8,4536.7,4.929]
[1756331733624,3.49213797,4536.8,4536.7,4.929]
[1756331733822,3.60253797,4536.8,4536.7,4.929]
[1756331735308,2.20453693,4536.1,4536.0,2.5974]
[1756331735498,2.95363693,4536.1,4536.0,6.609]
[1756331738555,2.95463693,4536.1,4536.0,6.609]
[1756331739519,2.49803693,4536.1,4536.0,6.609]
[1756331739825,2.95463693,4536.1,4536.0,6.594]
[1756331740545,2.95463693,4536.1,4536.0,4.895]
[1756331740936,3.48158742,4536.1,4536.0,0.792]
[1756331742147,2.20487718,4535.4,4535.3,4.101]
[1756331742340,2.31527718,4535.4,4535.3,4.893]
[1756331742741,2.60777718,4535.4,4535.3,4.893]
[1756331744253,2.60777718,4535.4,4532.3,0.004]
[1756331744254,2.80325865,4535.3,4532.3,0.004]
[1756331744453,0.1104,4532.9,4532.3,0.004]
[1756331744656,2.60899322,4532.9,4532.5,0.005]
[1756331744832,2.60899322,4532.9,4532.3,0.004]
[1756331745752,2.60899322,4532.9,4532.3,0.796]
[1756331745952,2.60899322,4532.9,4532.4,4.103]
[1756331746358,2.60899322,4532.9,4532.3,0.004]
[1756331746655,3.06559322,4532.9,4532.3,0.004]
[1756331746854,8.10305468,4532.9,4532.3,0.004]
[1756331747062,2.60899322,4532.9,4532.3,0.004]
[1756331747262,2.61259322,4532.9,4532.3,0.004]
[1756331748275,2.61259322,4532.9,4532.5,0.792]
[1756331749143,2.31649322,4532.9,4532.5,0.792]
[1756331749347,0.1104,4532.9,4532.8,1.0823]
[1756331750073,2.31649322,4532.9,4532.8,1.0823]
[1756331750268,0.1104,4532.9,4532.8,1.5567]
[1756331750450,0.1104,4532.9,4532.8,5.6457]
[1756331750644,0.1104,4533.1,4532.9,0.792]
[1756331750839,0.1104,4533.1,4533.0,1.5527]
[1756331751774,2.31639589,4533.1,4533.0,1.5527]
[1756331752371,0.1104,4533.1,4533.0,1.5527]
[1756331753372,2.20546205,4534.2,4533.1,0.792]
[1756331753560,2.20584991,4533.4,4533.3,0.792]
[1756331753762,2.50194991,4533.4,4533.3,0.792]
[1756331753947,2.20596708,4533.2,4533.1,0.792]
[1756331754147,2.61246708,4533.2,4533.1,0.792]
[1756331755675,2.61246708,4533.2,4533.0,4.079]
[1756331755676,2.2060085,4533.1,4533.0,0.792]
[1756331755973,2.31635487,4533.2,4533.0,0.792]
[1756331756181,2.31635487,4533.2,4533.1,1.0783]
[1756331757870,2.31634723,4533.2,4533.1,1.0783]
[1756331758776,2.20506931,4535.1,4533.1,1.0783]
[1756331758777,4.068,4534.3,4533.2,0.792]
[1756331759080,4.068,4534.3,4533.1,1.5527]
[1756331759081,0.1104,4533.7,4533.4,0.792]
[1756331759245,0.1104,4533.7,4533.6,1.0783]
[1756331760573,0.1104,4533.7,4533.6,0.792]
[1756331761089,0.1104,4533.7,4533.6,1.0783]
[1756331761398,2.31610395,4533.7,4533.6,0.792]
[1756331762186,2.31610395,4533.7,4533.6,1.0783]
[1756331763093,0.1104,4533.7,4533.6,1.0783]
[1756331763989,0.4065,4533.7,4533.6,0.792]
[1756331764186,0.8685,4533.7,4532.2,0.4744]
[1756331764358,0.1104,4532.9,4532.6,4.05]
[1756331764787,2.31649322,4532.9,4532.7,0.792]
[1756331764987,0.1104,4532.9,4532.8,0.2903]
[1756331765194,2.31649322,4532.9,4532.8,0.2903]
[1756331765604,2.31649322,4532.9,4532.8,1.0823]
[1756331766394,2.31649322,4532.9,4532.8,0.796]
[1756331766556,2.61259322,4532.9,4532.8,0.796]
[1756331767085,3.07459322,4532.9,4532.8,0.816]
[1756331767285,7.65865323,4532.9,4532.8,0.024]
[1756331768304,7.65665323,4532.9,4532.8,0.024]
[1756331768808,7.19365323,4532.9,4532.8,0.024]
[1756331768985,7.65565323,4532.9,4532.8,0.024]
[1756331769806,7.65365323,4532.9,4532.8,0.024]
[1756331769984,3.60265323,4532.9,4532.8,0.024]
[1756331770287,7.64965323,4532.9,4532.8,0.024]
[1756331775559,2.61259322,4532.9,4532.8,0.024]
[1756331775760,6.34949322,4532.9,4532.8,0.024]
[1756331775983,2.31649322,4532.9,4532.8,0.024]
[1756331776169,6.34649322,4532.9,4532.8,0.024]
[1756331776370,6.34649322,4532.9,4532.8,2.246]
[1756331776579,6.34649322,4532.9,4532.8,2.5323]
[1756331778662,0.1104,4532.9,4532.8,2.5323]
[1756331778862,0.1104,4532.9,4532.8,2.9849]
[1756331779682,0.1104,4532.9,4532.8,2.246]
[1756331779995,7.338139,4532.9,4532.8,2.246]
[1756331780207,3.08049322,4532.9,4532.8,2.246]
[1756331780503,6.65029322,4532.9,4532.8,2.246]
[1756331780931,6.65029322,4532.9,4532.8,1.454]
[1756331781701,7.10649322,4532.9,4532.8,1.454]
[1756331781929,2.20614189,4532.8,4532.3,0.004]
[1756331782085,2.20614189,4532.8,4532.3,1e-08]
[1756331782086,6.70390186,4532.4,4532.3,1e-08]
[1756331782281,16.24403845,4532.4,4532.3,1e-08]
[1756331782504,16.81063845,4532.4,4532.3,1e-08]
[1756331782720,17.46182922,4532.4,4532.3,1e-08]
[1756331783086,13.43582922,4532.4,4532.3,1e-08]
[1756331783529,10.75792736,4532.4,4532.3,1e-08]
[1756331784930,6.73192736,4532.4,4532.3,1e-08]
[1756331785098,10.75792736,4532.4,4532.3,1e-08]
[1756331785295,6.73192736,4532.4,4532.3,1e-08]
[1756331785513,10.75792736,4532.4,4532.3,1e-08]
[1756331791524,10.95873578,4532.4,4532.3,1e-08]
[1756331794222,6.93273578,4532.4,4532.3,1e-08]
[1756331794529,10.95873578,4532.4,4532.3,1e-08]
[1756331795853,10.50253578,4532.4,4532.3,1e-08]
[1756331797176,6.16873578,4532.4,4532.3,1e-08]
[1756331797371,10.19473578,4532.4,4532.3,0.29630001]
[1756331799044,10.19473578,4532.4,4532.3,1e-08]
[1756331799458,10.19486877,4532.4,4532.3,1e-08]
[1756331799858,10.50166877,4532.4,4532.3,1e-08]
[1756331800062,17.65166877,4532.4,4532.3,1e-08]
[1756331800384,17.90692736,4532.4,4532.3,1e-08]
[1756331800673,18.10797163,4532.4,4532.3,1e-08]
[1756331801392,3.0,4532.3,4530.8,0.02]
[1756331801687,0.1104,4530.9,4530.8,0.02]
[1756331801837,8.34726702,4530.9,4530.8,0.02]
[1756331802043,8.54831129,4530.9,4530.8,1e-08]
[1756331802242,8.34726702,4530.9,4530.8,1e-08]
[1756331802442,9.13911702,4530.9,4530.8,1e-08]
[1756331802683,9.79624212,4530.9,4530.8,1e-08]
[1756331803043,9.59531702,4530.9,4530.8,1e-08]
[1756331803242,9.79624623,4530.9,4530.8,1e-08]
[1756331803471,9.59531702,4530.9,4530.8,1e-08]
[1756331804140,9.13911702,4530.9,4530.8,1e-08]
[1756331804363,2.20755425,4529.9,4529.0,0.4526]
[1756331804562,8.06754867,4529.9,4529.0,0.4526]
[1756331804775,8.03995425,4529.9,4529.8,0.3163]
[1756331805365,8.03995425,4529.9,4529.8,0.02]
[1756331805605,6.1402,4529.9,4528.8,0.02]
[1756331805752,2.20804168,4528.9,4528.8,0.02]
[1756331805952,6.34344168,4528.9,4528.8,0.02]
[1756331806166,6.34344168,4528.9,4528.8,0.7689]
[1756331806569,6.34344168,4528.9,4528.8,0.3163]
[1756331806787,6.34344168,4528.9,4528.8,0.02]
[1756331807059,7.28485428,4528.9,4528.8,0.02]
[1756331807355,14.00211192,4528.9,4528.8,0.02]
[1756331807985,17.00211192,4528.9,4528.8,0.02]
[1756331809758,17.00211192,4528.9,4528.8,0.00400001]
[1756331809962,16.68531192,4528.9,4528.8,0.00400001]
[1756331810145,16.68531192,4528.9,4528.8,0.30100001]
[1756331810146,13.68631192,4528.9,4528.8,0.30100001]
[1756331810556,14.00211192,4528.9,4528.8,1e-08]
[1756331810784,2.20828548,4528.4,4528.3,1e-08]
[1756331811106,9.25657222,4528.4,4528.3,1e-08]
[1756331811270,13.28157222,4528.4,4528.3,0.29700001]
[1756331811463,13.28157222,4528.4,4528.3,0.72960001]
[1756331811782,6.56331458,4528.4,4528.3,0.72960001]
[1756331812458,2.53931458,4528.4,4528.3,0.72960001]
[1756331812780,6.34268548,4528.4,4528.3,0.72960001]
[1756331813980,2.31868548,4528.4,4528.3,0.72960001]
[1756331814302,2.20828548,4528.4,4528.3,0.72960001]
[1756331814505,6.23228548,4528.4,4528.3,0.72960001]
[1756331814864,2.20828548,4528.4,4528.3,0.72960001]
[1756331815070,6.23228548,4528.4,4528.3,0.72960001]
[1756331815882,2.20828548,4528.4,4528.3,0.72960001]
[1756331816091,6.23228548,4528.4,4528.3,0.72960001]
[1756331816701,2.20828548,4528.4,4528.3,0.72960001]
[1756331817065,6.67393555,4528.4,4528.3,0.29700001]
[1756331817666,6.67393555,4528.4,4528.3,1e-08]
[1756331817667,16.70699319,4528.4,4528.3,1e-08]
[1756331817872,2.20852934,4527.9,4527.8,1e-08]
[1756331818123,14.67439359,4527.9,4527.8,1e-08]
[1756331818274,15.40848698,4527.9,4527.8,1e-08]
[1756331818615,16.10137771,4527.9,4527.8,1e-08]
[1756331818966,18.65547771,4527.9,4527.8,1e-08]
[1756331819168,19.85998299,4527.9,4527.8,1e-08]
[1756331819372,25.16798299,4527.9,4527.8,1e-08]
[1756331819897,25.16798299,4527.9,4526.8,1e-08]
[1756331819898,2.2090172,4526.9,4526.8,1e-08]
[1756331820083,17.67488755,4526.9,4526.8,1e-08]
[1756331820283,18.72745307,4526.9,4526.8,1e-08]
[1756331820505,15.01640407,4526.9,4526.8,1e-08]
[1756331820676,15.2161824,4526.9,4526.8,1e-08]
[1756331820876,19.864795,4526.9,4526.8,1e-08]
[1756331821296,13.14753736,4526.9,4526.8,1e-08]
[1756331822021,15.20088636,4526.9,4526.8,1e-08]
[1756331822175,15.31690803,4526.9,4526.8,1e-08]
[1756331822615,19.33990803,4526.9,4526.8,1e-08]
[1756331822797,15.31690803,4526.9,4526.8,1e-08]
[1756331823120,19.98544534,4526.9,4526.8,1e-08]
[1756331823274,15.31690803,4526.9,4526.8,1e-08]
[1756331823615,19.33990803,4526.9,4526.8,1e-08]
[1756331823804,15.76280803,4526.9,4526.8,1e-08]
[1756331824004,19.9853338,4526.9,4526.8,1e-08]
[1756331824221,12.8353338,4526.9,4526.8,1e-08]
[1756331824376,2.20950529,4525.9,4525.8,1e-08]
[1756331824576,8.73477611,4525.9,4525.8,1e-08]
[1756331824776,12.4688573,4525.9,4525.8,1e-08]
[1756331825333,2.20991753,4525.1,4524.8,1e-08]
[1756331825481,5.20999359,4524.9,4524.8,1e-08]
[1756331825814,9.99319553,4524.9,4524.8,1e-08]
[1756331825995,10.68608626,4524.9,4524.8,1e-08]
[1756331827377,7.10898626,4524.9,4524.8,1e-08]
[1756331827580,11.13198626,4524.9,4524.8,1e-08]
[1756331827881,10.68608626,4524.9,4524.8,1e-08]
[1756331828080,6.97503726,4524.9,4524.8,1e-08]
[1756331828379,10.99803726,4524.9,4524.8,1e-08]
[1756331828796,6.97503726,4524.9,4524.8,1e-08]
[1756331829114,2.21023782,4524.4,4524.3,1e-08]
[1756331829281,6.090306,4524.4,4524.3,1e-08]
[1756331829481,10.08567803,4524.4,4524.3,1e-08]
[1756331829889,6.06267803,4524.4,4524.3,1e-08]
[1756331830217,10.08567803,4524.4,4524.3,0.29700001]
[1756331830784,6.06267803,4524.4,4524.3,0.29700001]
[1756331831185,10.08567803,4524.4,4524.3,0.29700001]
[1756331831516,10.40147803,4524.4,4524.3,1e-08]
[1756331831699,6.06267803,4524.4,4524.3,1e-08]
[1756331831902,10.08567803,4524.4,4524.3,0.29700001]
[1756331832103,5.21028667,4524.3,4523.8,0.43260001]
[1756331832283,0.1104,4523.9,4523.8,0.43260001]
[1756331832484,8.0438821,4523.9,4523.8,1e-08]
[1756331832715,8.0438821,4523.9,4523.8,0.72960001]
[1756331833737,2.3208821,4523.9,4523.8,0.72960001]
[1756331834025,6.2334821,4523.9,4523.8,0.72960001]
[1756331834186,0.1104,4524.0,4523.9,0.792]
[1756331834390,0.1104,4524.0,4523.9,1.37676]
[1756331834391,4.1334,4524.0,4523.9,1.37676]
[1756331834621,4.1334,4524.0,4523.9,1.67376]
[1756331834622,0.1104,4524.0,4523.9,1.67376]
[1756331835188,4.023,4524.2,4523.9,1.67376]
[1756331835387,2.20972678,4525.5,4523.9,1.67376]
[1756331835388,0.1104,4524.7,4524.1,0.792]
[1756331835635,0.1104,4525.2,4524.7,0.792]
[1756331835926,4.023,4525.3,4525.1,0.297]
[1756331836137,0.1104,4525.6,4525.2,0.4326]
[1756331836303,0.1104,4525.6,4525.3,0.792]
[1756331836486,0.1104,4525.6,4525.5,0.297]
[1756331836893,0.1104,4525.6,4525.5,1.5353]
[1756331837123,4.042,4525.8,4525.6,0.792]
[1756331837323,0.02,4525.8,4525.7,3.74190293]
[1756331837524,0.02,4525.8,4525.7,3.86355134]
[1756331838345,0.02,4525.8,4525.7,0.7403]
[1756331838511,0.02,4525.8,4525.7,1.5323]
[1756331838839,2.22955411,4525.8,4525.7,1.5323]
[1756331839145,2.22955411,4525.8,4525.7,0.7403]
[1756331839707,2.22955411,4525.8,4525.7,0.294]
[1756331840004,6.25055411,4525.8,4525.7,0.7403]
[1756331840203,2.22955411,4525.8,4525.7,0.7403]
[1756331840507,2.21013135,4524.7,4524.6,0.4463]
[1756331840711,2.21013135,4524.7,4524.6,0.7403]
[1756331842039,2.2104821,4523.9,4523.8,1e-08]
[1756331842213,2.2104821,4523.9,4523.8,0.44630001]
[1756331842536,2.2104821,4523.9,4523.8,0.74030001]
[1756331843420,6.2304821,4523.9,4523.8,0.74030001]
[1756331844260,6.2304821,4523.9,4523.8,0.29400001]
[1756331845051,6.2304821,4523.9,4523.8,0.74030001]
[1756331845249,2.2104821,4523.9,4523.8,0.74030001]
[1756331845623,6.2304821,4523.9,4523.8,0.74030001]
[1756331845818,6.2304821,4523.9,4523.8,0.29400001]
[1756331846248,2.5176821,4523.9,4523.8,1e-08]
[1756331846457,6.2304821,4523.9,4523.8,1e-08]
[1756331847315,2.2104821,4523.9,4523.8,1e-08]
[1756331847542,6.2304821,4523.9,4523.8,1e-08]
[1756331848334,2.2104821,4523.9,4523.8,1e-08]
[1756331848536,6.2304821,4523.9,4523.8,1e-08]
[1756331848748,6.2304821,4523.9,4523.8,0.00400001]
[1756331848945,2.3208821,4523.9,4523.8,0.29800001]
[1756331849258,2.3208821,4523.9,4523.8,0.74430001]
[1756331850152,6.3398821,4523.9,4523.8,0.74430001]
[1756331850357,2.3208821,4523.9,4523.8,0.74430001]
[1756331850656,6.3398821,4523.9,4523.8,0.74430001]
[1756331851955,6.3398821,4523.9,4523.8,0.00400001]
[1756331852148,6.3398821,4523.9,4523.8,0.29800001]
[1756331852337,2.3208821,4523.9,4523.8,0.29800001]
[1756331852672,6.3398821,4523.9,4523.8,0.74430001]
[1756331852824,6.3388821,4523.9,4523.8,0.74430001]
[1756331853232,2.3208821,4523.9,4523.8,0.00400001]
[1756331853559,6.6470821,4523.9,4523.8,0.00400001]
[1756331853733,6.3388821,4523.9,4523.8,0.00400001]
[1756331853936,6.3388821,4523.9,4523.8,0.29800001]
[1756331854241,6.3388821,4523.9,4523.8,0.74430001]
[1756331855027,6.3388821,4523.9,4523.8,1.53630001]
[1756331855233,2.2104821,4523.9,4523.8,1.53630001]
[1756331856749,2.21043324,4524.0,4523.9,0.792]
[1756331856928,2.21043324,4524.0,4523.9,1.5323]
[1756331857125,2.32169834,4524.3,4523.9,1.5323]
[1756331857331,2.21043324,4524.0,4523.9,1.086]
[1756331857958,2.21043324,4524.0,4523.9,1.5323]
[1756331858662,2.21043324,4524.0,4523.8,0.00400001]
[1756331858663,2.2104821,4523.9,4523.8,0.00400001]
[1756331858962,3.38570719,4523.9,4523.8,0.00400001]
[1756331859260,3.72053821,4523.9,4523.8,0.00400001]
[1756331859468,3.69290719,4523.9,4523.8,0.00400001]
[1756331860135,7.70890719,4523.9,4523.8,0.00400001]
[1756331861649,6.6440821,4523.9,4523.8,0.00400001]
[1756331863074,2.3208821,4523.9,4523.8,0.29800001]
[1756331863272,2.3208821,4523.9,4523.8,0.74430001]
[1756331863759,6.3358821,4523.9,4523.8,0.74430001]
[1756331864180,2.3208821,4523.9,4523.8,0.74430001]
[1756331864365,6.3358821,4523.9,4523.8,0.74430001]
[1756331865238,2.3208821,4523.9,4523.8,0.74430001]
[1756331865944,6.3358821,4523.9,4523.8,0.74430001]
[1756331866451,2.3208821,4523.9,4523.8,0.74430001]
[1756331866652,6.3358821,4523.9,4523.8,0.74430001]
[1756331866852,6.3348821,4523.9,4523.8,0.74430001]
[1756331867050,0.1104,4523.9,4523.8,3.74683097]
[1756331867249,0.001,4524.3,4524.2,3.00233552]
[1756331867467,0.02,4525.8,4524.3,3.792]
[1756331867651,0.02,4525.8,4525.7,1.104]
[1756331868067,0.02,4525.8,4525.7,1.5524]
[1756331868971,0.02,4525.8,4525.7,0.792]
[1756331869170,4.033,4525.8,4525.7,0.792]
[1756331869363,0.02,4525.8,4525.7,1.104]
[1756331869981,4.033,4525.8,4525.7,1.104]
[1756331870184,6.24255411,4525.8,4525.7,1.104]
[1756331870685,0.02,4525.8,4525.7,1.104]
[1756331870891,0.02,4525.8,4525.7,1.70764]
[1756331871591,2.22955411,4525.8,4525.7,1.104]
[1756331871955,4.032,4525.8,4524.8,1.7]
[1756331872187,4.032,4525.8,4524.8,0.792]
[1756331872390,2.20985926,4525.2,4524.8,0.792]
[1756331872560,2.20992546,4525.1,4524.8,0.57244]
[1756331872750,2.20985793,4525.2,4524.8,0.16510562]
[1756331872972,2.20985793,4525.2,4525.1,0.792]
[1756331873166,2.20985793,4525.2,4525.1,1.104]
[1756331873598,2.20979824,4525.3,4525.1,1.104]
[1756331873969,4.011,4525.3,4525.1,1.104]
[1756331874162,2.20984707,4525.2,4525.1,1.104]
[1756331874667,0.02,4525.8,4525.1,1.104]
[1756331874872,2.20984707,4525.2,4525.1,1.104]
[1756331876386,2.2099007,4525.1,4525.0,0.792]
[1756331876688,2.20985475,4525.2,4525.0,1.104]
[1756331876880,2.20989591,4525.1,4525.0,1.5524]
[1756331877207,2.20989591,4525.1,4525.0,1.6628]
[1756331877381,4.01,4525.3,4525.0,1.6628]
[1756331877576,2.20984681,4525.3,4525.0,1.6628]
[1756331877780,6.21970506,4525.5,4525.1,0.4484]
[1756331877981,6.21870058,4525.5,4525.1,0.4484]
[1756331878207,4.009,4525.5,4525.1,0.4484]
[1756331878395,2.20970058,4525.5,4525.4,1.104]
[1756331883197,6.21670058,4525.5,4525.4,1.5524]
[1756331883606,0.1304,4525.8,4525.4,1.5524]
[1756331883810,2.20965175,4525.6,4525.5,1.3508]
[1756331884096,2.2096138,4525.7,4525.5,1.6628]
[1756331885110,2.2096138,4525.7,4525.5,1.2144]
[1756331885305,2.2096138,4525.7,4525.5,1.6628]
[1756331885624,2.22956669,4525.8,4525.7,0.792]
[1756331885829,2.22956669,4525.8,4525.7,1.104]
[1756331886527,0.02,4525.8,4525.7,1.104]
[1756331887314,0.02,4525.8,4525.7,1.5524]
[1756331887501,2.22955411,4525.8,4525.7,1.5524]
[1756331887703,0.02,4525.8,4525.7,1.5524]
[1756331887903,0.02,4525.8,4525.7,1.71868]
[1756331889121,0.3235,4525.8,4525.6,0.792]
[1756331889709,0.02,4525.8,4525.6,0.792]
[1756331890110,0.02,4525.8,4525.7,0.312]
[1756331890804,0.02,4525.8,4525.7,1.6628]
[1756331891512,0.02,4525.8,4525.7,3.87240293]
[1756331891834,0.02,4525.8,4525.7,4.48061685]
[1756331898770,0.02,4525.8,4525.7,8.48061685]
[1756331899567,0.02,4525.8,4525.7,11.48061685]
[1756331905782,0.02,4526.8,4526.7,3.0011148]
[1756331905957,0.02,4526.8,4526.7,18.94848005]
[1756331906157,0.02,4526.8,4526.7,8.51884468]
[1756331906362,0.02,4526.8,4526.7,12.98264468]
[1756331906668,0.02,4526.8,4526.7,12.51384468]
[1756331906974,0.021,4526.8,4526.7,12.98264468]
[1756331907178,0.001,4527.3,4527.2,3.00087082]
[1756331907349,0.001,4527.3,4527.2,18.01468131]
[1756331907666,0.001,4527.3,4527.2,10.81455204]
[1756331907867,0.001,4527.3,4527.2,10.51685204]
[1756331907868,0.3134,4527.3,4527.2,10.51685204]
[1756331908073,0.7448,4527.3,4527.2,7.51685204]
[1756331908248,0.001,4527.3,4527.2,7.81455204]
[1756331909072,0.001,4527.3,4527.2,3.81955204]
[1756331909273,0.001,4527.3,4527.2,7.81355204]
[1756331909473,0.021,4527.8,4527.7,12.72072605]
[1756331909671,0.021,4527.8,4527.7,19.90566842]
[1756331909876,0.021,4527.8,4527.7,20.67216842]
[1756331910373,1e-08,4527.8,4527.7,16.67916842]
[1756331910573,1e-08,4527.8,4527.7,20.67216842]
[1756331911585,0.02,4528.8,4528.7,3.0001392]
[1756331911755,0.02,4528.8,4528.7,9.21197424]
[1756331911955,0.02,4528.8,4528.7,9.50967424]
[1756331912463,0.02,4528.8,4528.7,9.21197424]
[1756331912989,0.02,4528.8,4528.7,9.50967424]
[1756331913185,0.02,4528.8,4528.7,12.50967424]
[1756331913402,0.02,4528.8,4528.7,12.97847424]
[1756331914452,0.3324,4528.8,4528.7,12.20997424]
[1756331914891,0.7638,4528.8,4528.7,12.20997424]
[1756331915089,0.3324,4528.8,4528.7,12.20997424]
[1756331915287,0.7638,4528.8,4528.7,6.481]
[1756331915890,0.7638,4528.8,4528.7,5.7994]
[1756331916190,0.7638,4528.8,4527.9,1.698]
[1756331916392,2.20848056,4528.0,4527.9,1.698]
[1756331916591,2.95228056,4528.0,4527.9,4.781]
[1756331917194,2.95228056,4528.0,4527.9,3.989]
[1756331917763,2.95228056,4528.0,4527.9,4.781]
[1756331918561,0.7438,4528.0,4527.9,4.781]
[1756331919762,2.95228056,4528.0,4527.9,4.781]
[1756331920394,0.7438,4528.0,4527.9,4.781]
[1756331920589,2.95228056,4528.0,4527.9,4.781]
[1756331920983,0.7438,4528.0,4527.9,4.781]
[1756331921365,2.95228056,4528.0,4527.9,4.781]
[1756331923363,2.95228056,4528.0,4527.2,4.07375178]
[1756331923364,3.46837378,4528.0,4527.2,1.86489254]
[1756331923594,2.20882203,4527.3,4526.8,0.02]
[1756331923794,0.1104,4526.9,4526.8,0.02]
[1756331923995,2.6318172,4526.9,4526.8,0.02]
[1756331924182,3.59043576,4526.9,4526.8,0.02]
[1756331927199,7.57543576,4526.9,4526.8,0.02]
[1756331927711,7.57443576,4526.9,4526.8,0.02]
[1756331927868,3.59043576,4526.9,4526.8,0.02]
[1756331928073,7.57443576,4526.9,4526.8,0.02]
[1756331928426,3.59043576,4526.9,4526.8,0.02]
[1756331928585,7.57443576,4526.9,4526.8,0.02]
[1756331929517,3.59043576,4526.9,4526.8,0.02]
[1756331929713,7.57443576,4526.9,4526.8,0.02]
[1756331930500,3.59043576,4526.9,4526.8,0.02]
[1756331930809,7.57343576,4526.9,4526.8,0.02]
[1756331932404,9.27243576,4526.9,4526.8,1e-08]
[1756331932789,9.26373576,4526.9,4526.8,1e-08]
[1756331933621,9.26373576,4526.9,4526.7,1e-08]
[1756331933622,2.209066,4526.8,4526.7,1e-08]
[1756331933784,3.3839595,4526.8,4526.7,1e-08]
[1756331934116,7.1190595,4526.8,4526.7,1e-08]
[1756331934413,11.07344618,4526.8,4526.7,1e-08]
[1756331934717,11.18384618,4526.8,4526.7,1e-08]
[1756331935718,2.20916361,4526.6,4525.8,1e-08]
[1756331935889,2.31990529,4525.9,4525.8,1e-08]
[1756331936083,11.3296241,4525.9,4525.8,1e-08]
[1756331936286,11.73500529,4525.9,4525.8,1e-08]
[1756331936489,11.82359829,4525.9,4525.8,1e-08]
[1756331936683,12.3396598,4525.9,4525.8,1e-08]
[1756331938222,9.2510668,4525.9,4525.8,1e-08]
[1756331938601,8.8180668,4525.9,4525.8,1e-08]
[1756331939191,4.8370668,4525.9,4525.8,1e-08]
[1756331939392,5.2700668,4525.9,4525.8,1e-08]
[1756331939593,7.99890529,4525.9,4525.8,0.31370001]
[1756331940113,6.29990529,4525.9,4525.8,0.31370001]
[1756331940300,0.1104,4525.9,4525.8,0.31370001]
[1756331940624,0.1104,4526.0,4525.8,1.53910001]
[1756331940923,0.1104,4526.0,4525.9,0.4334]
[1756331941124,3.98,4526.8,4526.0,0.792]
[1756331941332,0.1104,4526.3,4526.0,0.792]
[1756331941511,2.31971164,4526.3,4526.2,0.3137]
[1756331941695,0.1104,4526.3,4526.2,0.3137]
[1756331941889,2.31971003,4526.3,4526.2,0.3137]
[1756331942094,2.31971003,4526.3,4526.2,0.7471]
[1756331942523,0.1104,4526.3,4526.2,0.7471]
[1756331942692,2.31971003,4526.3,4526.2,0.7471]
[1756331942891,0.1104,4526.3,4526.2,1.5391]
[1756331943292,2.31971003,4526.3,4526.2,1.5391]
[1756331943526,0.1104,4526.3,4526.2,1.5391]
[1756331943823,2.31953933,4526.7,4526.3,0.792]
[1756331944041,0.001,4528.0,4526.7,0.792]
[1756331944246,0.001,4528.0,4527.1,0.792]
[1756331944411,0.001,4528.0,4527.0,2.20896841]
[1756331944412,0.001,4528.0,4527.9,1.1057]
[1756331944732,0.001,4528.0,4527.9,3.4470614]
[1756331944897,0.001,4528.5,4528.4,3.00028548]
[1756331945214,0.001,4528.5,4528.4,8.67728548]
[1756331945521,0.001,4528.5,4528.4,9.42438548]
[1756331947308,0.001,4528.5,4528.4,6.7827]
[1756331947697,0.001,4528.5,4528.4,7.2161]
[1756331948717,0.001,4528.5,4528.4,6.7827]
[1756331948919,0.001,4528.5,4528.4,7.2161]
[1756331949440,0.001,4528.5,4527.7,2.20860965]
[1756331949639,0.001,4528.5,4527.7,3.56108642]
[1756331949933,0.001,4528.5,4528.4,0.3137]
[1756331950105,0.001,4528.5,4528.4,1.1057]
[1756331950308,0.001,4528.5,4528.4,3.74738548]
[1756331951432,0.001,4528.5,4528.4,1.1057]
[1756331952036,0.001,4528.5,4528.4,0.792]
[1756331953853,2.20923672,4528.5,4528.4,0.792]
[1756331954147,2.51133672,4528.5,4528.4,0.792]
[1756331955557,3.03972686,4528.5,4528.4,0.792]
[1756331955855,3.47272686,4528.5,4528.4,0.792]